Cogmind - Beta 16.1 @@@ ROGUE MODE // 2026.02.24 @ 20:28:07 Player: McSaucyNugget Result: Destroyed by G-34 Mercenary with Small Laser Performance ------------- Evolutions (0) 0 Regions Visited (1) 200 Robots Destroyed (13) 65 Value Destroyed (356) 356 Prototype IDs (0) 0 Alien Tech Used (0) 0 Bonus (0) 0 TOTAL SCORE: 621 Bonus ------- None Cogmind --------- Core Integrity 0/250 Matter 300/300 Energy 250/250 System Corruption 2% Temperature Cool (11) Movement Core (300) Ox5 Location -10/Materials Parts ------- > --- POWER (1) -------- Ion Engine > --- PROPULSION (2) --- (None) > --- UTILITY (2) ------ Medium Storage Unit > --- WEAPON (2) ------- Medium Laser > --- INVENTORY (10) --- Light Nuclear Core Heat Sink Small Storage Unit Light Cannon Peak State ------------ > --- POWER ------------ (None) > --- PROPULSION ------- Wheel Wheel > --- UTILITY ---------- Heat Sink Small Storage Unit > --- WEAPON ----------- EM Pulse Gun Medium Laser > --- INVENTORY -------- Small Laser [Rating: 6] Favorites ----------- Power Ion Engine Engine Ion Engine Propulsion Wheel Wheel Wheel Utility Medium Storage Unit Device Heat Sink Storage Medium Storage Unit Weapon Medium Laser Energy Gun Medium Laser Ballistic Gun Assault Rifle Build | -11 -10 ------- Run | Yrd Mat Slots Evolved . | . . Power . | . . Propulsion . | . . Utility . | . . Weapon . | . . Parts Attached 13 | 4 9 Power 3 | 1 2 Engine 3 | 1 2 Core . | . . Reactor . | . . Propulsion 2 | . 2 Treads . | . . Leg . | . . Wheel 2 | . 2 Hover . | . . Flight . | . . Utility 3 | 1 2 Device 1 | . 1 Storage 2 | 1 1 Processor . | . . Hackware . | . . Protection . | . . Artifact . | . . Weapon 5 | 2 3 Energy Gun 4 | 1 3 Energy Cannon . | . . Ballistic Gun 1 | 1 . Ballistic Cannon . | . . Launcher . | . . Special Weapon . | . . Impact Weapon . | . . Slashing Weapon . | . . Piercing Weapon . | . . Special Melee Weapon . | . . Unidentified Prototypes . | . . Parts Lost 8 | . 8 Power 2 | . 2 Propulsion 2 | . 2 Utility 1 | . 1 Weapon 3 | . 3 Highest Loss Streak 2 | . 2 To Critical Strikes . | . . Average Backups 2 | 1 2 Power . | . . Propulsion . | 1 . Utility . | . . Weapon . | . . Tool/Special . | . . Unused Backups 2 | . 2 Power 1 | . 1 Propulsion . | . . Utility . | . . Weapon 1 | . 1 Tool/Special . | . . Average Slot Usage (%) 56 | . 56 Engine 8 | . 8 Wheel 7 | . 7 Device 7 | . 7 Storage 14 | . 14 Energy Gun 14 | . 14 Ballistic Gun 2 | . 2 Peak Build Rating 6 | 4 6 Average Rating 3 | 3 3 On Entrance 2 | . 4 Avg Prop Armor Cover (%) . | . . Naked Turns . | . . Heaviest Build 18 | 12 18 Greatest Support 20 | 3 20 Greatest Overweight (x) 5 | 3 5 Average Overweight (x) 1 | 2 1 Largest Inventory Capacity 10 | 8 10 Average Capacity 9 | 7 9 Most Carried 5 | 4 5 Average Carried 2 | 1 2 Final Capacity 10 | 8 10 Final Carried 4 | 2 4 Class Distribution -------------------- 100% | Mutant Dominant Class ---------------- Mutant | -10/Materials Resources | -11 -10 ----------- Run | Yrd Mat Matter Collected 366 | 240 126 Remotely . | . . Salvage Created 434 | . 434 Parts 23 | . 23 Haulers Intercepted . | . . Recyclers Shooed 1 | . 1 Parts Field Recycled . | . . Retrieved Matter . | . . Parts Self-Destructed . | . . Prevented . | . . Parts Restored . | . . Kills | -11 -10 ------- Run | Yrd Mat Combat Hostiles Destroyed 11 | . 11 Guns 11 | . 11 Classes Destroyed 4 | . 4 Builder 1 | . 1 Watcher 1 | . 1 Swarmer 3 | . 3 Grunt 8 | . 8 Best Kill Streak 4 | . 4 Combat Bots Only 3 | . 3 Max Kills in Single Turn 2 | . 2 Gunslinging 1 | . 1 Exploded . | . . Melee . | . . Uniques/NPCs Destroyed . | . . Combat | -11 -10 -------- Run | Yrd Mat Hostile Shots Fired 109 | . 109 Missed 35 | . 35 Hits 74 | . 74 Projectile 74 | . 74 Damage Taken 860 | . 860 Core 259 | . 259 Absorbed by Shields . | . . Core Remaining (%) 100 | 100 . Volleys Fired 51 | . 51 Largest 2 | . 2 Hottest 70 | . 70 Shots Fired 64 | . 64 Gun 64 | . 64 Cannon . | . . Launcher . | . . Special . | . . Kinetic 13 | . 13 Thermal 43 | . 43 Explosive . | . . Electromagnetic 8 | . 8 Robot Hit Streak 7 | . 7 Robot Miss Streak 3 | . 3 Penetration Max . | . . Secondary Targets 2 | . 2 Max Gunslinging Chain 1 | . 1 Shots Hit Robots 42 | . 42 Core Hits 22 | . 22 Critical Kills . | . . Critical Parts Destroyed 1 | . 1 Critical Strikes 5 | . 5 Burn 4 | . 4 Destroy 1 | . 1 Melee Attacks . | . . Impact . | . . Slashing . | . . Piercing . | . . Sneak Attacks . | . . Combat Hostiles . | . . Follow-up Attacks . | . . Damage Inflicted 593 | . 593 Guns 550 | . 550 Cannons . | . . Explosions . | . . Melee . | . . Ramming 43 | . 43 Kinetic 135 | . 135 Thermal 360 | . 360 Explosive . | . . Electromagnetic 55 | . 55 Impact . | . . Slashing . | . . Piercing . | . . Highest Corruption 2 | . 2 Average Corruption 1 | . 1 Corruption Purged . | . . Corruption Blocked . | . . Effects 5 | . 5 Matter Fused 2 | . 2 Heat Flow Errors 1 | . 1 Data Loss (minor) 1 | . 1 Alerts 1 | . 1 Overload Shots . | . . Overflow Damage . | . . Projectiles . | . . Explosions . | . . Melee . | . . Knockbacks . | . . Impact . | . . Kinetic . | . . Secondary . | . . Self-Inflicted Damage 18 | . 18 Shots . | . . Rammed 16 | . 16 Targets Rammed 16 | . 16 Kicked . | . . Crushed . | . . Highest Temperature 260 | . 260 Average Temperature 34 | . 34 Received Heat Transfer 417 | . 417 Siege Activations . | . . Martial Activations . | . . Shielding Activations . | . . Robots Disrupted . | . . Combat Hostiles . | . . Robots Corrupted . | . . Combat Hostiles . | . . Parts Fried . | . . Impact Corruptions . | . . Robots Melted . | . . Combat Hostiles . | . . Parts Melted 2 | . 2 Heat Transferred 1369 | . 1369 Parts Sabotaged . | . . Parts Stolen . | . . Parts Stripped . | . . Power Chain Reactions . | . . Alert | -11 -10 ------- Run | Yrd Mat Maximum Alert Level . | . . Low Security (%) 100 | 100 100 Level 1 . | . . Level 2 . | . . Level 3 . | . . Level 4 . | . . Level 5 . | . . High Security . | . . Max Security . | . . Peak Influence 90 | . 90 Initial . | . . Average 51 | . 59 Influence Increases 360 | . 360 Destroy 0b10 Robot/C 220 | . 220 Destroy 0b10 Robot/NC 10 | . 10 Destroy Leader 52 | . 52 Successful Hack 2 | . 2 Disable Machine 30 | . 30 Destroy Structure 1 | . 1 Lose Combat Pursuer 45 | . 45 Influence Decreases 279 | . 279 Time Decay 209 | . 209 Lost Part 70 | . 70 Squads Dispatched 4 | . 4 Investigation 2 | . 2 Extermination . | . . Reinforcement 2 | . 2 Assault . | . . Garrison . | . . Intercept . | . . Searches Triggered . | . . Construction Impeded . | . . Haulers Reinforced . | . . Active Scanning Responses . | . . Cargo Convoy Interrupts . | . . Stealth | -11 -10 --------- Run | Yrd Mat Distress Signals 1 | . 1 Communications Jammed . | . . Distress Signals . | . . Times Spotted 19 | . 19 Peak Tracking Total 4 | . 4 Tactical Retreats 2 | . 2 Traps | -11 -10 ------- Run | Yrd Mat Traps Triggered 1 | . 1 Indirectly . | . . Trap Hack Attempts . | . . Triggered . | . . Disarmed . | . . Reprogrammed . | . . Reused . | . . Traps Extracted . | . . Installed . | . . Triggered . | . . Machines | -11 -10 ---------- Run | Yrd Mat Machines Disabled 2 | . 2 Max in Single Turn 1 | . 1 Machines Repaired . | . . Machines Dismantled . | . . Machines Sabotaged . | . . Overloaded Fab Kills . | . . Hacking | -11 -10 --------- Run | Yrd Mat Machines Accessed 1 | . 1 Terminals 1 | . 1 Fabricators . | . . Repair Stations . | . . Recycling Units . | . . Scanalyzers . | . . Garrison Access . | . . Total Hacks 3 | . 3 Successful 3 | . 3 Failed . | . . Catastrophic . | . . Database Lockouts . | . . Manual 1 | . 1 Terminals 3 | . 3 Fabricators . | . . Repair Stations . | . . Recycling Units . | . . Scanalyzers . | . . Garrison Access . | . . Terminal Hacks 3 | . 3 Record 3 | . 3 Fabricator Hacks . | . . Repair Station Hacks . | . . Recycling Unit Hacks . | . . Scanalyzer . | . . Garrison Access Hacks . | . . Unauthorized Hacks . | . . Terminals . | . . Fabricators . | . . Repair Stations . | . . Recycling Units . | . . Scanalyzers . | . . Garrison Access . | . . Data Cores Recovered . | . . Used . | . . Hacking Detections 1 | . 1 Full Trace Events 1 | . 1 Feedback Events . | . . Feedback Blocked . | . . Robot Schematics Acquired . | . . Robots Built . | . . Authchips . | . . Time . | . . Total Robot Build Rating . | . . Part Schematics Acquired . | . . Parts Built . | . . Authchips . | . . Time . | . . Total Part Build Rating . | . . Part Studies Acquired . | . . Parts Repaired . | . . Time . | . . Parts Recycled . | . . Recycled Matter . | . . Retrieved Matter . | . . Retrieved Components . | . . Parts Scanalyzed . | . . Part Schematics Acquired . | . . Parts Damaged . | . . Bothacking | -11 -10 ------------ Run | Yrd Mat Used RIF Installer . | . . Robots Hacked . | . . Non-combat . | . . Combat . | . . Robot Hacks Applied . | . . Relay Couplers Released . | . . Fabnet Peak Effective % . | . . Robots Rewired . | . . Allies Hacked . | . . Hacks Repelled . | . . Allies | -11 -10 -------- Run | Yrd Mat Total Allies . | . . Largest Group . | . . Highest-Rated Group . | . . Highest-Rated Ally . | . . Total Orders . | . . Ally Attacks . | . . Total Damage . | . . Kills . | . . Allies Corrupted . | . . Allies Melted . | . . Intel | -11 -10 ------- Run | Yrd Mat Active Infowar (turns) . | . . Robot Analysis Total . | . . Derelict Logs Recovered . | . . Drone Launches . | . . Drone Recoveries . | . . Exploration | -11 -10 ------------- Run | Yrd Mat Turns Passed 531 | 70 461 Spaces Moved 287 | 40 247 Core 121 | 40 81 Treads . | . . Legs . | . . Wheels 166 | . 166 Hover . | . . Flight . | . . Fastest Speed 50 | 50 80 Average Speed 129 | 155 125 Slowest Speed 300 | 200 300 Overloaded Moves . | . . Propulsion Burnouts . | . . Robots Hopped . | . . Potential Cave-ins . | . . Cave-ins Triggered . | . . Exploration Rate (%) 20 | 3 37 Regions Visited 1 Branch Regions . Pre-discovered Areas . | . . Known Exits Taken . | . . Unknown Exits Taken 1 | 1 . Scrap Searched . | . . Spaces Dug . | . . Terrain Destroyed . | . . Melee . | . . Projectile . | . . AOE . | . . Terrain Rammed . | . . Walls Destroyed . | . . Machines Disabled . | . . Actions | -11 -10 --------- Run | Yrd Mat Total 385 | 49 336 Wait . | . . Move 286 | 39 247 Hop . | . . Pick Up 16 | 6 10 Fast Attach . | . . Attach 13 | 4 9 Detach 1 | . 1 Swap 1 | . 1 Drop 1 | . 1 Fire 51 | . 51 Melee . | . . Ram 16 | . 16 Kick . | . . Crush . | . . Escape Stasis . | . . Rewire . | . . Trap . | . . Miscellaneous . | . . Route ------- -11/Scrapyard -10/Materials History --------- Turn | Location | Event 8 | -11/Scrapyard | Discovered new exit (range 15) 71 | -11/Scrapyard | Entered Materials 183 | -10/Materials | Core integrity fell below 50% 307 | -10/Materials | Core integrity fell below 20% 322 | -10/Materials | Build established: Mutant 532 | -10/Materials | Destroyed by G-34 Mercenary with Small Laser Last Messages --------------- 00407_ Destabilizing: System corrupted (+1). 00408_ Slammed into K-01 Serf. 00426_ Wheel destroyed. 00427_ G-34 Mercenary destroyed. 00453_ U-05 Engineer destroyed. 00458_ System corrupted: Component data lost. 00466_ Ion Engine destroyed. 00483_ G-34 Mercenary suffers critical hit (Burn). 00487_ Heat Sink destroyed. 00489_ G-34 Mercenary destroyed. 00495_ Acquired Heat Sink. 00497_ System corrupted: IFF burst signal emitted. 00498_ Acquired Ion Engine. 00500_ Acquired 10 matter. 00509_ G-34 Mercenary suffers critical hit (Burn). 00511_ Aluminum Leg melted. 00511_ G-34 Mercenary destroyed. Map ----- +----------------------------------------------------+ | ????????????????????????????? | | ????????????????????????????? | | ????????????????????????????? | | ????????????????????????????? | | ????????????????????????????? | | ????????????????????????????? | | ????????????????????????????? | | ????????????????????????????? | | ??????#?????????????????????? | | ?????? ?????????????????????? | | ?????? ?????????????????????? | | ?????? ?????????????????????? | | ?????? ???????????????####### | | ?????? ???????????? | | ?????? ??????????# | | ?????#/#?????????# | | ?????# #?????????# | | ?????# #?????????# ! | | ###### #?????????# """ ! | | # # #?????????# """ ! | | # # #?????????# """ | | # # #?????????+ | | # g#%## """??# | | # %;=%+= """????# | | # %#!##! """????# | | # @#%#???????????# | | # #!############# | | # #= | | ###### """ | | ?????# """ | | ?????######## ### """ | | ????????????# #?# | | ????????????# #?# | | ????????????# #?# | | ????????????# #?# ########### | | ???????????? ?# #??????#### | | ???????????? ?# #?????? | | ???????????? ?# #?????? | | ???????????? ##+#####? | | ???????????? # # | | ???????????? # T # | | ???????????? # !# | | ???????????? + #?????? | | ???????????? # #?????? | | ???????????? # #?????? | | ???????????????########?????? | | ????????????????????????????? | | ????????????????????????????? | | ????????????????????????????? | | ????????????????????????????? | +----------------------------------------------------+ Best States ------------- Heat Dissipation 35 Energy Generation 10 Energy Capacity 250 Matter Stores 300 Matter Capacity 300 Sight Range 16 Terrain Scan Density 10 Evasion (%) 50 Item Schematics ----------------- None Robot Schematics ------------------ None Fabricated ------------ Nothing Repaired ---------- Nothing Studied --------- None Alien Tech Used ----------------- None Achievements -------------- Ghost 'Em Challenges ------------ None Game ------ Seed AssembledTowerArticulator Manual? 0 Play Time 00:07:25 Cumulative 34.4 hours Start 2026.02.24 @ 20:20:51 End 2026.02.24 @ 20:28:07 Sessions 1 Manual Loads 0 Difficulty Rogue Special Mode None Game No. 31 Rogue 31 Adventurer 0 Explorer 0 Win Type - Total 3 Types 2/0/1/0/0/0/0/0/0/0 Lore% 27 Gallery% 33 Achievement% 26 Wizard Run 0 Options --------- Layout 1 ASCII 0 Keyboard 0 Movement Mouse Keybinds 0 Fullscreen 1 Font 24/Smallcaps Map View 50x35 Zoom Use 0% Tactical HUD 1 Map Filters NONE Filters NONE Steam 1 RUN: 329258f9-0c4d-4d17-8ab3-4b270d841488